[Event "German Rapid Championship 2022"]
[Site "Goettingen"]
[Date "2022.09.25"]
[Round "8.9"]
[White "Spiess, Gunter"]
[Black "Elier, Ali"]
[Result "1/2-1/2"]
[ECO "E06"]
[WhiteElo "2384"]
[BlackElo "2164"]
[Annotator "TA"]
[PlyCount "150"]
[EventDate "2022.09.24"]
[EventType "swiss"]
[EventCountry "GER"]
[SourceTitle "playchess.com"]
[Source "ChessBase"]
[SourceQuality "1"]
[TimeControl "900+10"]

{[%evp 21,150,19,22,10,22,9,20,32,20,14,25,-34,-37,-40,-40,-39,-25,-227,-233,-220,-238,-246,-249,-216,-238,-285,-302,-288,-250,-282,-283,-285,-281,-364,-358,-399,-342,-366,-369,-391,-373,-355,-350,-343,-139,-126,-62,-70,0,0,0,0,-6,-192,-71,-106,-93,-74,-76,-154,-145,-306,-189,-317,-193,-180,-90,-164,-152,-182,0,0,0,0,0,0,0,0,0,0,0,0,0,0,0,-5,0,0,0,0,0,0,0,0,0,0,0,-77,-77,-77,0,0,0,-77,-77,-77,0,0,0,0,0,0,0,0,0,0,0,0,0,0,0,0,0,0,0,0,0,0,0,0,0]} 1. d4 {[%emt 0:00:01]} d5 {[%emt 0:00:01]} 2. c4 {[%emt 0:00:03]} e6 {[%emt 0:00:01]} 3. Nf3 {[%emt 0:00:11]} Nf6 {[%emt 0:00:02]} 4. g3 {[%emt 0:00:03]} Be7 {[%emt 0:00:01]} 5. Bg2 {[%emt 0:00:01]} O-O {[%emt 0:00:02]} 6. O-O {[%emt 0:00:02]} dxc4 {[%emt 0:00:02]} 7. Qc2 {[%emt 0:00:01]} a6 {[%emt 0:00:02]} 8. a4 {[%emt 0:00:02]} Bd7 {[%emt 0:00:14]} 9. Qxc4 {[%emt 0:00:03]} Bc6 {[%emt 0:00:04]} 10. Bg5 {[%emt 0:00:08]} Bd5 {[%emt 0:00:30]} 11. Qc2 {[%emt 0:00:02]} Be4 {[%emt 0:00:06]} 12. Qd2 {[%emt 0:00:02] E05: Open Catalan: 5 Nf3 Be7.} Nc6 {[%emt 0:01:55] [#]} 13. e3 $146 {[%emt 0:00:24]} ({Predecessor:} 13. Nc3 Bg6 14. Rfd1 Na5 15. Qf4 Nb3 16. Ra2 c6 17. Bxf6 Bxf6 18. Ne5 Bc2 19. Rf1 Nxd4 20. b4 Bg5 21. Qg4 Bf5 22. Qh5 g6 {0-1 (22) Tokman,A (2316)-Sychev,K (2572) Chess.com INT 2020}) 13... Bb4 {[%emt 0:01:42]} 14. Nc3 {[%emt 0:00:05]} Bxc3 {[%emt 0:00:18]} 15. bxc3 {[%emt 0:03:04]} Qd5 {[%emt 0:00:07]} 16. Bxf6 {[%emt 0:00:13]} (16. c4 $1 $11 Qf5 17. Bf4) 16... Bxf3 $15 {[%emt 0:00:20]} (16... gxf6 17. Qd1 $14) 17. c4 {[%emt 0:02:44]} Qf5 $36 {[%emt 0:00:28][%mdl 2048] White is under pressure.} 18. Bxf3 {[%emt 0:00:52]} Qxf3 {[%emt 0:00:11]} 19. Bg5 {[%emt 0:01:15]} (19. d5 $11) 19... f6 $19 {[%emt 0:01:06]} 20. Bf4 {[%emt 0:00:02]} e5 {[%emt 0:00:31]} 21. dxe5 {[%emt 0:00:34]} Rad8 {[%emt 0:00:01]} (21... fxe5 22. Qd5+ Qxd5 23. cxd5 $11) 22. Qb2 {[%emt 0:00:17] Strongly threatening exf6.} g5 {[%emt 0:00:08]} (22... fxe5 23. Bxe5 Nxe5 24. Qxe5 $15) 23. exf6 {[%emt 0:01:04]} gxf4 {[%emt 0:00:02]} 24. Rae1 {[%emt 0:02:14]} b6 {[%emt 0:01:30]} 25. exf4 {[%emt 0:01:12]} Nd4 {[%emt 0:00:43]} 26. Re3 {[%emt 0:00:51]} Qc6 {[%emt 0:00:31]} 27. f3 {[%emt 0:00:10]} Rxf6 {[%emt 0:00:11]} (27... Qxf6 $2 28. Qb1 $19) 28. Kg2 {[%emt 0:00:02]} Qxc4 {[%emt 0:01:12][%cal Od4c2] ...Nc2! is the strong threat.} 29. Rc1 {[%emt 0:01:36] Inhibits Nc2.} Qf7 {[%emt 0:00:04]} ({Wrong is} 29... Qxa4 $2 30. Rxc7 Rc6 31. Rxc6 Qxc6 32. Rc3 $19) 30. a5 {[%emt 0:00:01]} bxa5 {[%emt 0:00:26]} 31. Rc5 {[%emt 0:00:03]} Nf5 {[%emt 0:00:26]} 32. Re2 {[%emt 0:00:45]} a4 {[%emt 0:00:12]} (32... Re6 $19 {Threatens to win with ...Ne3+.} 33. Rce5 Rb6) 33. Rxc7 $17 {[%emt 0:00:06]} Nh4+ {[%emt 0:01:48]} (33... Qxc7 $17 34. Qxf6 Rf8 35. Qe6+ Kh8 36. Qxa6 Qd7) 34. Kh3 $15 {[%emt 0:01:10]} Qxc7 {[%emt 0:04:06]} (34... Qg6 $1 $15 35. Ree7 Nf5 36. Qa2+ Kh8 37. Rxh7+ Qxh7+ 38. Rxh7+ Kxh7) 35. Qxf6 $11 {[%emt 0:00:01]} Ng6 {[%emt 0:00:10] And now ...Qd7+ would win.} (35... Nxf3 $2 36. Re7 Ng1+ 37. Kg4 Qd7+ 38. Rxd7 Rxd7 39. Qe6+ Rf7 40. Qe8+ Kg7 41. Qxa4 $18) 36. f5 {[%emt 0:00:16]} Qd7 {[%emt 0:00:14] aiming for ...a5.} 37. Qg5 $2 {[%emt 0:01:11]} (37. Qe6+ $11 {and White stays safe.} Qxe6 38. Rxe6) 37... Rf8 {[%emt 0:00:26]} (37... a3 $1 $19 {and Black stays clearly on top. White must now prevent ...Rf8.} 38. g4 Qd5) 38. g4 $17 {[%emt 0:00:03]} Qd8 {[%emt 0:00:01]} 39. Qe3 {[%emt 0:00:26]} Nh8 {[%emt 0:01:14]} 40. Qe6+ {[%emt 0:00:03]} ({Better is} 40. Rd2 Qf6 41. Ra2) 40... Nf7 {[%emt 0:00:01]} 41. Qxa6 $2 {[%emt 0:00:01]} (41. f4 $17) 41... Qd1 {[%emt 0:00:21]} 42. Rf2 {[%emt 0:00:23]} (42. Kg2 {might work better.}) 42... Rd8 {[%emt 0:00:14]} 43. Kg2 {[%emt 0:00:11]} Rd2 {[%emt 0:00:07]} (43... Rd6 $19 44. Qc8+ Kg7) 44. f6 {[%emt 0:00:07]} (44. Qc8+ $17 Kg7 45. Qc3+ Rd4 46. Rb2) 44... Rxf2+ $19 {[%emt 0:00:04]} 45. Kxf2 {[%emt 0:00:01] [#]} Qc2+ $2 {[%emt 0:00:01]} (45... Qd2+ $1 $19 46. Kf1 Qd5) 46. Kg3 $11 {[%emt 0:00:01]} Qc7+ {[%emt 0:00:11]} 47. Kg2 {[%emt 0:00:02]} Qc2+ {[%emt 0:00:22]} 48. Kg3 {[%emt 0:00:01] White threatens Qa8+ and mate.} Qd1 {[%emt 0:00:11]} ({Much weaker is} 48... Qc7+ $6 49. Kg2 $17) 49. Qa8+ {[%emt 0:00:06]} Nd8 {[%emt 0:00:03] Hoping for ...Kf7.} 50. g5 {[%emt 0:00:03]} Qg1+ {[%emt 0:00:14]} 51. Kh3 {[%emt 0:00:09]} Qf1+ {[%emt 0:00:01]} 52. Kg3 {[%emt 0:00:01]} Qe1+ {[%emt 0:00:03]} 53. Kg2 {[%emt 0:00:04]} Qe2+ {[%emt 0:00:03]} 54. Kh3 {[%emt 0:00:06]} Qe6+ {[%emt 0:00:25]} 55. Kg2 {[%emt 0:00:01]} Qe2+ {[%emt 0:00:05]} 56. Kh3 $1 {[%emt 0:00:00]} Qd3 {[%emt 0:00:09]} 57. Qxa4 {[%emt 0:00:16][%cal Ra4e8]} Qxf3+ {[%emt 0:00:02]} 58. Kh4 {[%emt 0:00:02][%cal Ra4e8]} Qf2+ {[%emt 0:00:19]} 59. Kg4 {[%emt 0:00:07] [#]} (59. Kh3 $1 $11 Ne6 60. Qe8+ Nf8 61. Qe4) 59... Qg2+ $1 $17 {[%emt 0:00:04]} 60. Kf5 {[%emt 0:00:17][%cal Ra4e8]} Qd5+ {[%emt 0:00:17]} (60... Qf3+ $17 61. Qf4 Qd3+ 62. Kg4 Ne6) 61. Kg4 $11 {[%emt 0:00:05][%cal Ra4e8]} Qg2+ {[%emt 0:00:03]} (61... Qe6+ $11 62. Kh4 Kh8) 62. Kf5 $1 $17 {[%emt 0:00:00][%cal Ra4e8]} Qh3+ {[%emt 0:00:16]} 63. Qg4 {[%emt 0:00:21]} Qd3+ {[%emt 0:00:03]} (63... Qxh2 $17 64. Qc4+ Kh8) 64. Qe4 $11 {[%emt 0:00:02] The position is equal.} Qd7+ {[%emt 0:00:02]} ({Reject} 64... Qh3+ $6 65. Qg4 Qxh2 66. Qc4+ Kh8 67. Qd5 Qh3+ 68. Kf4 Ne6+ 69. Ke5 Qe3+ 70. Kf5 $17) 65. Kf4 {[%emt 0:00:37]} Ne6+ {[%emt 0:00:10]} 66. Kg4 {[%emt 0:00:02]} Nc5+ {[%emt 0:00:38]} 67. Qf5 {[%emt 0:00:01]} Qd4+ {[%emt 0:00:15]} 68. Qf4 {[%emt 0:00:00]} Qd7+ {[%emt 0:00:05]} 69. Qf5 {[%emt 0:00:01]} Ne6 {[%emt 0:00:06]} 70. g6 {[%emt 0:00:43]} h5+ {[%emt 0:00:25]} 71. Kh4 {[%emt 0:00:25]} Qd4+ {[%emt 0:00:09]} 72. Kxh5 {[%emt 0:00:13]} Qd1+ {[%emt 0:00:14]} 73. Qg4 {[%emt 0:00:21]} Nf4+ {[%emt 0:00:02]} 74. Kg5 {[%emt 0:00:05] Qc8+ would kill now. The board is on fire.} Qxg4+ {[%emt 0:00:09]} 75. Kxg4 {[%emt 0:00:01]} Nxg6 {[%emt 0:00:01] And White is the lucky defender.  Weighted Error Value: White=0.30/Black=0.25 (precise)} 1/2-1/2

[Event "German Rapid Championship 2022"]
[Site "Goettingen"]
[Date "2022.09.25"]
[Round "8.10"]
[White "Langheinrich, Ferenc"]
[Black "Becker, Thomas"]
[Result "1-0"]
[ECO "C41"]
[WhiteElo "2366"]
[BlackElo "2124"]
[Annotator "TA"]
[PlyCount "30"]
[EventDate "2022.09.24"]
[EventType "swiss"]
[EventCountry "GER"]
[SourceTitle "playchess.com"]
[Source "ChessBase"]
[SourceQuality "1"]
[TimeControl "900+10"]

{[%evp 20,30,24,0,257,250,233,247,245,250,362,356,439]} 1. e4 {[%emt 0:00:13]} e5 {[%emt 0:00:01]} 2. Nf3 {[%emt 0:00:04]} d6 {[%emt 0:00:02]} 3. d4 {[%emt 0:00:17]} exd4 {[%emt 0:00:02]} 4. Qxd4 {[%emt 0:00:08]} Nc6 {[%emt 0:00:01]} 5. Bb5 {[%emt 0:00:02]} Bd7 {[%emt 0:00:01]} 6. Bxc6 {[%emt 0:00:02]} Bxc6 {[%emt 0:00:03]} 7. Nc3 {[%emt 0:00:06]} Nf6 {[%emt 0:00:01]} 8. Bg5 {[%emt 0:00:06]} Be7 {[%emt 0:00:02]} 9. O-O-O {[%emt 0:00:06]} O-O {[%emt 0:00:02]} 10. Rhe1 {[%emt 0:00:26]} Re8 {[%emt 0:00:02]} 11. h3 {[%emt 0:00:09]} Nxe4 $2 {[%emt 0:03:12][%mdl 8192] C62: Ruy Lopez: Steinitz Defence.} 12. Bxe7 $18 {[%emt 0:00:33]} Qxe7 {[%emt 0:00:08] [#]} 13. Nxe4 $1 {[%emt 0:00:02]} Bxe4 {[%emt 0:00:02] [#]} 14. Nd2 $1 {[%emt 0:00:03] [#]} Qg5 $146 {[%emt 0:05:22]} (14... f5 $142) ({Predecessor:} 14... Qe6 15. Qxe4 Qxe4 16. Rxe4 Rxe4 17. Nxe4 Re8 18. Re1 Kf8 19. Kd2 h6 20. Nc3 Rxe1 21. Kxe1 {1-0 (26) Alvarez Naves,L-Fernandez Lamadrid,J Valladolid 1974}) 15. Rxe4 {[%emt 0:00:08]} Qd8 {[%emt 0:00:00] Black got outplayed after the opening.  Weighted Error Value: White=0.03 (flawless) /Black=1.84} 1-0

[Event "German Rapid Championship 2022"]
[Site "Goettingen"]
[Date "2022.09.25"]
[Round "8.11"]
[White "Carlstedt, Jonathan"]
[Black "Stelmaszyk, Nico"]
[Result "1-0"]
[ECO "D25"]
[WhiteElo "2433"]
[BlackElo "2355"]
[Annotator "TA"]
[PlyCount "43"]
[EventDate "2022.09.24"]
[EventType "swiss"]
[EventCountry "GER"]
[SourceTitle "playchess.com"]
[Source "ChessBase"]
[SourceQuality "1"]
[TimeControl "900+10"]

{[%evp 15,42,18,32,0,0,-3,0,0,0,-9,1,0,0,5,36,29,65,42,257,272,418,156,402,352,825,820,1395,1386,29999]} 1. d4 {[%emt 0:00:03]} d5 {[%emt 0:00:00]} 2. Nf3 {[%emt 0:00:02]} Nf6 {[%emt 0:00:02]} 3. c4 {[%emt 0:00:01]} dxc4 {[%emt 0:00:01]} 4. e3 {[%emt 0:00:07]} a6 {[%emt 0:00:02]} 5. a4 {[%emt 0:00:06]} e6 {[%emt 0:00:03]} 6. Bxc4 {[%emt 0:00:03]} c5 {[%emt 0:00:01]} 7. Nc3 {[%emt 0:00:04]} Nc6 {[%emt 0:00:03]} 8. O-O {[%emt 0:00:04]} Qc7 {[%emt 0:00:02]} 9. Be2 {[%emt 0:00:23] [#] D27: Queen's Gambit Accepted: Classical main line: 7 e4!? and 7 a4.} cxd4 $146 {[%emt 0:00:25]} ({Predecessor:} 9... Bd6 10. h3 O-O 11. dxc5 Bxc5 12. Qc2 e5 13. Ng5 Nb4 14. Qb1 Qe7 15. Bd2 h6 16. Nge4 Bf5 {½-½ (32) Zavjalov,V-Volodarsky,Y Novokuznetsk 1996}) 10. exd4 {[%emt 0:00:02]} Bd6 {[%emt 0:01:01]} 11. Be3 {[%emt 0:00:10] The position is equal.} O-O {[%emt 0:00:58]} 12. Rc1 {[%emt 0:00:03]} Qa5 {[%emt 0:00:49]} 13. Nd2 {[%emt 0:00:15]} Ne7 {[%emt 0:02:41]} 14. Nc4 {[%emt 0:00:22]} Qd8 {[%emt 0:00:01]} 15. Bg5 {[%emt 0:00:28]} Nf5 {[%emt 0:00:48]} 16. Bd3 {[%emt 0:00:58][%cal Od4d5]} Nxd4 $2 {[%emt 0:00:49]} ({Black should play} 16... h6 $14 17. Bxf6 (17. Nxd6 hxg5 18. Nxf5 exf5 $11) 17... Qxf6) 17. Bxf6 $18 {[%emt 0:01:08]} gxf6 {[%emt 0:00:04] [#]} (17... Bxh2+ {was called for.} 18. Kxh2 Qxf6) 18. Qg4+ $1 {[%emt 0:00:03]} ({Less strong is} 18. Qh5 f5 $16) 18... Kh8 {[%emt 0:00:04] [#] This costs Black the game.} 19. Qh4 $1 {[%emt 0:00:02][%csl Gd3][%cal Rh4h7]} Nf3+ $2 {[%emt 0:02:39]} (19... Bxh2+ 20. Kh1 f5 21. Qxh2 Nc6) 20. gxf3 {[%emt 0:00:21][%csl Gd3][%cal Rh4h7]} Bxh2+ {[%emt 0:00:01]} 21. Kxh2 {[%emt 0:00:16][%csl Gd3][%cal Rh4h7]} Qd4 {[%emt 0:00:02]} 22. Qxh7# {Weighted Error Value: White=0.05 (flawless) /Black=1.03} 1-0

[Event "German Rapid Championship 2022"]
[Site "Goettingen"]
[Date "2022.09.25"]
[Round "8.12"]
[White "Reichmann, Hendrik"]
[Black "Albert, Markus"]
[Result "1/2-1/2"]
[ECO "A41"]
[WhiteElo "2307"]
[BlackElo "2129"]
[Annotator "TA"]
[PlyCount "79"]
[EventDate "2022.09.24"]
[EventType "swiss"]
[EventCountry "GER"]
[SourceTitle "playchess.com"]
[Source "ChessBase"]
[SourceQuality "1"]
[TimeControl "900+10"]

{[%evp 9,79,53,67,71,57,70,64,49,43,43,57,39,39,20,70,33,86,76,117,124,123,82,102,96,95,63,68,58,75,72,67,37,51,39,59,35,104,99,106,108,109,102,102,102,104,72,87,81,104,78,231,156,156,8,36,6,45,39,95,41,50,44,75,0,82,0,91,0,77,0,88,0]} 1. d4 {[%emt 0:00:03]} d6 {[%emt 0:00:01]} 2. Nf3 {[%emt 0:01:06]} Bg4 {[%emt 0:00:06]} 3. Nbd2 {[%emt 0:01:44]} Nd7 {[%emt 0:00:06]} 4. h3 {[%emt 0:00:44]} Bh5 {[%emt 0:00:05]} 5. c3 {[%emt 0:00:50]} e5 {[%emt 0:00:07]} 6. Qb3 {[%emt 0:00:20] [#] A41: 1 d4 d6: Tartakower System and Modern Defence.} exd4 $146 {[%emt 0:03:02]} ({Predecessor:} 6... Rb8 7. e3 Ngf6 8. Be2 h6 9. Qd1 e4 10. Ng1 Bxe2 11. Nxe2 d5 12. c4 c6 {½-½ (21) Campbell,I (1996)-Kirkwood,R (1911) Vale 2015}) 7. cxd4 {[%emt 0:00:08]} Rb8 {[%emt 0:00:27]} 8. g3 {[%emt 0:00:43] White is slightly better.} Ngf6 {[%emt 0:00:22]} 9. Bg2 {[%emt 0:00:06]} Be7 {[%emt 0:00:16]} 10. O-O {[%emt 0:00:07]} O-O {[%emt 0:00:08]} 11. e4 {[%emt 0:00:30]} (11. g4 $5 {[%cal Rg4h5]} Bg6 12. Nh4 $11) 11... c6 {[%emt 0:00:27]} (11... c5 $11) 12. Re1 {[%emt 0:00:15]} Bg6 {[%emt 0:00:11] [#]} (12... Ne8 $14) 13. Nh4 $1 $16 {[%emt 0:00:10]} d5 {[%emt 0:00:38]} 14. Nxg6 {[%emt 0:01:38]} hxg6 {[%emt 0:00:08]} 15. exd5 {[%emt 0:00:21]} cxd5 {[%emt 0:00:28]} 16. Nf3 {[%emt 0:00:34] Strongly threatening Bf4.} Nb6 {[%emt 0:00:23][%cal Bd7b6,Bb6c4,Bc4a5,Ba5c6][%mdl 32]} 17. a4 {[%emt 0:00:38]} Nc4 {[%emt 0:00:38]} 18. Ne5 {[%emt 0:00:31]} Na5 {[%emt 0:00:16]} 19. Qd3 {[%emt 0:01:49]} Re8 {[%emt 0:01:33]} 20. Bd2 {[%emt 0:00:31] White has more active pieces.} Nc6 {[%emt 0:00:17]} 21. Bc3 {[%emt 0:01:20]} Bd6 {[%emt 0:00:31]} 22. g4 {[%emt 0:00:33]} Bxe5 {[%emt 0:02:41]} (22... Bb4 $14) 23. dxe5 {[%emt 0:00:02]} d4 {[%emt 0:00:01]} 24. exf6 {[%emt 0:00:13]} dxc3 {[%emt 0:00:04]} 25. Rxe8+ {[%emt 0:00:10]} ({Resist} 25. Qxc3 Rxe1+ 26. Rxe1 gxf6 $11) 25... Qxe8 {[%emt 0:00:02]} 26. Qxc3 {[%emt 0:00:18]} Qe5 {[%emt 0:02:08]} 27. fxg7 {[%emt 0:00:54]} Nd4 {[%emt 0:00:37]} 28. Kh1 {[%emt 0:00:38]} b6 {[%emt 0:00:52]} 29. Re1 {[%emt 0:00:23]} Qxg7 {[%emt 0:01:03]} (29... Qf6 $16) 30. Qc7 {[%emt 0:00:11]} Rf8 {[%emt 0:00:06]} 31. Be4 {[%emt 0:01:52]} (31. Bd5 $16) 31... Qf6 {[%emt 0:00:10]} 32. Kg2 {[%emt 0:00:07]} ({Avoid the trap} 32. Qxa7 $2 Qxf2 33. Rd1 {[#]} Qg3 $1 34. Rxd4 Qxh3+ 35. Kg1 Qe3+ 36. Kg2 Qxd4 $19) 32... Re8 {[%emt 0:00:12][%cal Oe8e4] aiming for ...Rxe4!} (32... Ne6 $5 {[%cal Re6c7]} 33. Qc3 (33. Qxa7 $2 Nf4+ 34. Kg3 Qe5 $19) 33... Nf4+ 34. Kh2 Qd6 $14) 33. Qc3 {[%emt 0:00:07]} Kg7 {[%emt 0:00:54]} (33... Qd6 $14) 34. f3 {[%emt 0:00:11]} ({Better is} 34. h4 $16) 34... Rd8 {[%emt 0:00:16]} 35. Rd1 {[%emt 0:00:09][%cal Of3f4]} Qe5 {[%emt 0:00:08]} 36. Re1 {[%emt 0:00:23]} (36. h4 $16) 36... Re8 {[%emt 0:01:01]} (36... Qf6 $11 {keeps the balance.}) 37. Rd1 {[%emt 0:00:05]} Rd8 {[%emt 0:00:03]} 38. Re1 {[%emt 0:00:18][%cal Oe4g6] Threatens to win with Bxg6!} Re8 {[%emt 0:00:03]} 39. Rd1 {[%emt 0:00:16]} Rd8 {[%emt 0:00:02]} 40. Re1 {[%emt 0:00:20] Weighted Error Value: White=0.33/Black=0.24 (precise)} (40. h4 $16) 1/2-1/2

[Event "German Rapid Championship 2022"]
[Site "Goettingen"]
[Date "2022.09.25"]
[Round "8.13"]
[White "Kersten, Uwe"]
[Black "Schmidt, Tobias"]
[Result "0-1"]
[ECO "C01"]
[WhiteElo "2261"]
[BlackElo "2262"]
[Annotator "TA"]
[PlyCount "71"]
[EventDate "2022.09.24"]
[EventType "swiss"]
[EventCountry "GER"]
[SourceTitle "playchess.com"]
[Source "ChessBase"]
[SourceQuality "1"]
[TimeControl "900+10"]

{[%evp 12,71,24,0,0,-4,0,-14,0,-35,0,-39,-35,-29,-4,-38,-54,-38,-32,-43,-36,-35,61,73,72,0,0,0,0,0,0,0,0,0,0,0,99,34,65,10,13,14,48,37,37,12,12,0,14,12,29,-15,-7,-53,-43,-133,-124,-403,-110,-129,-125,-330]} 1. e4 {[%emt 0:00:02]} e6 {[%emt 0:00:01]} 2. d4 {[%emt 0:00:02]} d5 {[%emt 0:00:01]} 3. exd5 {[%emt 0:00:14]} exd5 4. Nf3 {[%emt 0:00:03]} Nc6 {[%emt 0:00:07]} 5. Bb5 {[%emt 0:00:15]} Bd6 {[%emt 0:00:15]} 6. O-O {[%emt 0:00:28]} Nge7 {[%emt 0:00:40]} 7. c4 {[%emt 0:00:03]} dxc4 {[%emt 0:00:41] C01: French: Exchange Variation.} 8. Nc3 {[%emt 0:00:22]} O-O {[%emt 0:00:26]} 9. Bxc4 {[%emt 0:01:41]} Bg4 {[%emt 0:00:13] The position is equal.} 10. Be3 {[%emt 0:00:23]} Qd7 {[%emt 0:02:17] [#]} 11. Ne4 $146 {[%emt 0:05:52]} ({Predecessor:} 11. h3 Bh5 12. Be2 Rad8 13. Qb3 Qc8 14. Ne4 a6 15. Nc5 Na5 16. Qa4 Nac6 17. Qb3 {½-½ (37) Stetsko,L (2164)-Makka,I (2076) Stary Smokovec 2018}) 11... Rad8 {[%emt 0:00:47]} 12. Rc1 {[%emt 0:02:13]} a6 {[%emt 0:02:20]} 13. a3 {[%emt 0:00:58]} Nf5 {[%emt 0:00:51]} 14. h3 {[%emt 0:00:36]} Bxf3 {[%emt 0:00:34]} 15. Qxf3 {[%emt 0:00:18]} Nfxd4 {[%emt 0:00:10]} 16. Qh5 {[%emt 0:02:30]} Qf5 {[%emt 0:01:04]} (16... Be7 $15) 17. Qxf5 $14 {[%emt 0:00:09]} Nxf5 {[%emt 0:00:02]} 18. Bg5 {[%emt 0:00:01] This bishop pair is nice.} (18. Nxd6 $16 cxd6 19. Bxa6 $1) 18... Be7 {[%emt 0:00:45]} 19. Bxe7 {[%emt 0:01:12]} Ncxe7 {[%emt 0:00:02]} 20. Nc5 {[%emt 0:00:06]} Nd6 {[%emt 0:00:11]} 21. Be2 {[%emt 0:00:13][%cal Oc5b7]} Nc6 {[%emt 0:01:00]} 22. Rfd1 {[%emt 0:00:35][%cal Oc5b7] Against Nd4} ({Much weaker is} 22. Nxb7 Nd4 23. Bxa6 Nxb7 24. Bxb7 Ne2+ 25. Kh2 Nxc1 26. Rxc1 Rd7 $15) 22... Ne5 {[%emt 0:01:38]} 23. f4 {[%emt 0:00:02]} Nd7 {[%emt 0:00:08] [#]} (23... Ng6 $11 {remains equal.}) 24. Nb3 {[%emt 0:00:20]} ({Better is} 24. Nxb7 $1 $16 Nxb7 25. Rxc7) 24... Nf6 {[%emt 0:00:31]} 25. Bf3 {[%emt 0:00:22]} (25. Rxc7 $14 Nfe4 26. Nc5) 25... c6 {[%emt 0:02:02]} 26. Nc5 {[%emt 0:00:00]} b6 {[%emt 0:00:49]} 27. Nxa6 {[%emt 0:00:12]} c5 {[%emt 0:00:01]} 28. Nc7 {[%emt 0:00:06]} Nf5 {[%emt 0:00:20]} 29. Nb5 {[%emt 0:00:08]} Ne3 {[%emt 0:00:31]} 30. Re1 {[%emt 0:00:27]} Rd3 {[%emt 0:00:26]} 31. Re2 {[%emt 0:00:13]} g6 {[%emt 0:00:44]} 32. Rce1 {[%emt 0:00:01]} (32. Rc3 $11 {is superior.} Rd1+ 33. Kf2) 32... Ned5 $15 {[%emt 0:00:08]} 33. Re5 {[%emt 0:00:22]} (33. f5 $15) 33... Nxf4 $17 {[%emt 0:00:10]} 34. Kf2 $2 {[%emt 0:00:08][%mdl 8192]} (34. R5e3 $17) 34... Ne6 $2 {[%emt 0:00:08]} (34... Rb3 $19 {has better winning chances.} 35. Kg3 N6h5+ 36. Kh2 Rxb5) 35. R1e2 {[%emt 0:00:09]} Rfd8 {[%emt 0:00:11]} 36. Na7 $2 {Weighted Error Value: White=0.29 (precise) /Black=0.31} (36. Rc2 $17) 0-1

[Event "German Rapid Championship 2022"]
[Site "Goettingen"]
[Date "2022.09.25"]
[Round "9.1"]
[White "Feuerstack, Aljoscha"]
[Black "Bluebaum, Matthias"]
[Result "1/2-1/2"]
[ECO "C07"]
[WhiteElo "2464"]
[BlackElo "2647"]
[Annotator "TA"]
[PlyCount "40"]
[EventDate "2022.09.24"]
[EventType "swiss"]
[EventCountry "GER"]
[SourceTitle "playchess.com"]
[Source "ChessBase"]
[SourceQuality "1"]
[TimeControl "900+10"]

{[%evp 20,21,25,26]} 1. e4 {[%emt 0:00:02]} e6 {[%emt 0:00:01]} 2. d4 {[%emt 0:00:01]} d5 {[%emt 0:00:01]} 3. Nd2 {[%emt 0:00:01]} c5 {[%emt 0:00:01]} 4. Ngf3 {[%emt 0:00:02]} cxd4 {[%emt 0:00:02]} 5. exd5 {[%emt 0:00:02]} Qxd5 {[%emt 0:00:02]} 6. Bc4 {[%emt 0:00:02]} Qd6 {[%emt 0:00:01]} 7. O-O {[%emt 0:00:08]} Nf6 {[%emt 0:00:02]} 8. Nb3 {[%emt 0:00:02]} Nc6 {[%emt 0:00:02]} 9. Nbxd4 {[%emt 0:00:05]} Nxd4 {[%emt 0:00:01]} 10. Nxd4 {[%emt 0:00:09]} Be7 {[%emt 0:00:02]} 11. c3 {[%emt 0:00:21] [#]} {Predecessor:} O-O $146 {C07: French Tarrasch: 3...c5, 4 Ngf3 and 4 exd5 Qxd5.} 12. Qf3 Qc7 13. Bd3 Bd7 14. Re1 Rfd8 15. Bg5 Be8 16. Rad1 h6 17. Bf4 Qb6 18. Rd2 Rac8 19. Rde2 Bc5 20. Be5 Be7 {0-1 (82) Harikrishna,P (2716)-Salem,A (2690) Chess.com INT 2022} 1/2-1/2

[Event "German Rapid Championship 2022"]
[Site "Goettingen"]
[Date "2022.09.25"]
[Round "9.2"]
[White "Fridman, Daniel"]
[Black "Svane, Rasmus"]
[Result "1/2-1/2"]
[ECO "D02"]
[WhiteElo "2607"]
[BlackElo "2615"]
[Annotator "TA"]
[PlyCount "38"]
[EventDate "2022.09.24"]
[EventType "swiss"]
[EventCountry "GER"]
[SourceTitle "playchess.com"]
[Source "ChessBase"]
[SourceQuality "1"]
[TimeControl "900+10"]

{[%evp 10,15,13,-3,0,-15,-3,-17]} 1. Nf3 {[%emt 0:00:02]} d5 {[%emt 0:00:01]} 2. d4 {[%emt 0:00:01]} Nf6 {[%emt 0:00:03]} 3. Bf4 {[%emt 0:00:06]} e6 {[%emt 0:00:24]} 4. e3 {[%emt 0:00:02]} Bd6 {[%emt 0:00:08]} 5. Bxd6 {[%emt 0:00:16]} Qxd6 {[%emt 0:00:04]} 6. Nbd2 {[%emt 0:00:04] The position is equal.} O-O {[%emt 0:00:08] D02: 1 d4 d5 2 Nf3 sidelines, including 2...Nf6 3 g3 and 2...Nf6 3 Bf4.} 7. Bd3 {[%emt 0:00:02]} c5 {[%emt 0:00:15]} 8. c3 {[%emt 0:00:02] [#] Not much happened in this game.} {Predecessor:} Nc6 $146 9. O-O e5 10. dxe5 Nxe5 11. Nxe5 Qxe5 12. Qa4 Bd7 13. Qh4 Rfe8 14. Rfe1 Bc6 15. Rad1 a5 16. a4 Rad8 17. Bb5 Bxb5 18. axb5 b6 19. h3 Rd6 {½-½ (38) Zhao,Y (2430)-Inarkiev,E (2692) China 2019} 1/2-1/2